{"text_format":"1","workbook":"xlsx","n_sheets":4,"sheets":["PV_Module","Sprachen","Referenz","Export"],"not_rendered":{"charts":0,"images":0,"macros":0,"external_links":0,"defined_names":7,"comments":0,"pivot_tables":0},"unopened":[],"bounds":{"document_bytes":16777216,"sheet_cells":100000,"rows_first":2000,"rows_last":500,"rows_between":2000,"halvings":0,"cell_chars":16384,"cell_head_chars":4096},"cells_cut":0,"cells_raw":0,"read":"whole","date_system":"1900"}

{"sheet":"PV_Module","index":0,"n_rows":63,"n_cols":12,"rows_kept":63,"cut":false,"hidden":false,"merged":[[59,1,59,6],[60,1,60,6],[61,1,61,6],[0,6,0,7],[3,1,3,3],[4,1,4,3],[5,1,5,3],[6,1,6,3],[7,1,7,3],[8,1,8,3],[20,4,20,6],[21,4,21,6],[45,4,45,6],[46,4,46,6],[47,4,47,6],[48,4,48,6],[54,4,54,6],[49,4,49,6],[50,4,50,6],[51,4,51,6],[52,4,52,6],[53,4,53,6]]}
[{"$f":"IF(Sprache=\"deutsch\",Sprachen!A2,IF(Sprache=\"Français\",Sprachen!B2,Sprachen!C2))","v":"Statistik Sonnenenergie - Photovoltaik"},null,null,null,"Sprache/Langue/Lingua","Deutsch",{"$f":"Jahr","v":2023},null,{"$f":"IF(Sprache=\"deutsch\",Sprachen!A95,IF(Sprache=\"Français\",Sprachen!B95,Sprachen!C95))","v":"Falls Fehler, hier angezeigt:"},"ausblenden"]
[null,null,null,null,null,null,null,{"$f":"IF(Referenz!B8+Referenz!B10+Referenz!B11+Referenz!B9+Referenz!B13+Referenz!B13=6,IF(Sprache=\"Deutsch\",Sprachen!$A$86,IF(Sprache=\"Français\",Sprachen!$B$86,Sprachen!$C$86)),IF(Sprache=\"Deutsch\",Sprachen!$A$87,IF(Sprache=\"Français\",Sprachen!$B$87,Sprachen!$C$87)))","v":"Status ok"},{"$f":"IF(Referenz!B8,\"\",IF(Sprache=\"deutsch\",Sprachen!A89,IF(Sprache=\"Français\",Sprachen!B89,Sprachen!C89)))","v":""}]
[{"$f":"IF(Sprache=\"deutsch\",Sprachen!A3,IF(Sprache=\"Français\",Sprachen!B3,Sprachen!C3))","v":"Unternehmen"},null,null,null,null,null,null,null,{"$f":"IF(Referenz!B9,\"\",IF(Sprache=\"deutsch\",Sprachen!A90,IF(Sprache=\"Français\",Sprachen!B90,Sprachen!C90)))","v":""}]
[{"$f":"IF(Sprache=\"deutsch\",Sprachen!A4,IF(Sprache=\"Français\",Sprachen!B4,Sprachen!C4))","v":"Firma"},null,null,null,null,{"$f":"IF(Sprache=\"deutsch\",Sprachen!A10,IF(Sprache=\"Français\",Sprachen!B10,Sprachen!C10))","v":"Hersteller"},null,null,{"$f":"IF(Referenz!B10,\"\",IF(Sprache=\"deutsch\",Sprachen!A91,IF(Sprache=\"Français\",Sprachen!B91,Sprachen!C91)))","v":""}]
[{"$f":"IF(Sprache=\"deutsch\",Sprachen!A5,IF(Sprache=\"Français\",Sprachen!B5,Sprachen!C5))","v":"Strasse"},null,null,null,null,{"$f":"IF(Sprache=\"deutsch\",Sprachen!A11,IF(Sprache=\"Français\",Sprachen!B12,Sprachen!C11))","v":"Importeur"},null,null,{"$f":"IF(Referenz!B11,\"\",IF(Sprache=\"deutsch\",Sprachen!A92,IF(Sprache=\"Français\",Sprachen!B92,Sprachen!C92)))","v":""}]
[{"$f":"IF(Sprache=\"deutsch\",Sprachen!A6,IF(Sprache=\"Français\",Sprachen!B6,Sprachen!C6))","v":"PLZ/Ort"},null,null,null,null,{"$f":"IF(Sprache=\"deutsch\",Sprachen!A12,IF(Sprache=\"Français\",Sprachen!B12,Sprachen!C12))","v":"Handelsunternehmung"},null,null,{"$f":"IF(Referenz!B12,\"\",IF(Sprache=\"deutsch\",Sprachen!A93,IF(Sprache=\"Français\",Sprachen!B93,Sprachen!C93)))","v":""}]
[{"$f":"IF(Sprache=\"deutsch\",Sprachen!A7,IF(Sprache=\"Français\",Sprachen!B7,Sprachen!C7))","v":"Kontaktperson"},null,null,null,null,{"$f":"IF(Sprache=\"deutsch\",Sprachen!A13,IF(Sprache=\"Français\",Sprachen!B13,Sprachen!C13))","v":"Installateur"},null,null,{"$f":"IF(Referenz!B13,\"\",IF(Sprache=\"deutsch\",Sprachen!A94,IF(Sprache=\"Français\",Sprachen!B94,Sprachen!C94)))","v":""}]
[{"$f":"IF(Sprache=\"deutsch\",Sprachen!A8,IF(Sprache=\"Français\",Sprachen!B8,Sprachen!C8))","v":"Telefon"},null,null,null,null,{"$f":"IF(Sprache=\"deutsch\",Sprachen!A14,IF(Sprache=\"Français\",Sprachen!B14,Sprachen!C14))","v":"Andere"}]
[{"$f":"IF(Sprache=\"deutsch\",Sprachen!A9,IF(Sprache=\"Français\",Sprachen!B9,Sprachen!C9))","v":"E-Mail"}]
[]
[{"$f":"IF(Sprache=\"deutsch\",Sprachen!A82,IF(Sprache=\"Français\",Sprachen!B82,Sprachen!C82))","v":"        Ich habe keine Anlagen produziert, gehandelt oder installiert"}]
[]
[{"$f":"IF(Sprache=\"deutsch\",Sprachen!A15,IF(Sprache=\"Français\",Sprachen!B15,Sprachen!B15))","v":"Produktion & Handel"}]
[{"$f":"IF(Sprache=\"deutsch\",Sprachen!A16,IF(Sprache=\"Français\",Sprachen!B16,Sprachen!C16))","v":"1. Herkunft der Module"},{"$f":"IF(Sprache=\"deutsch\",Sprachen!A24,IF(Sprache=\"Français\",Sprachen!B24,Sprachen!C24))","v":"Leistung"},null,null,{"$f":"IF(Sprache=\"deutsch\",Sprachen!A25,IF(Sprache=\"Français\",Sprachen!B25,Sprachen!C25))","v":"2. Vertrieb der Module"},null,{"$f":"IF(Sprache=\"deutsch\",Sprachen!A24,IF(Sprache=\"Français\",Sprachen!B24,Sprachen!C24))","v":"Leistung"}]
[{"$f":"IF(Sprache=\"deutsch\",Sprachen!A17,IF(Sprache=\"Français\",Sprachen!B17,Sprachen!C17))","v":"(Netzverbund & Inselanlagen)"},"[ kW ]",null,null,{"$f":"IF(Sprache=\"deutsch\",Sprachen!A17,IF(Sprache=\"Français\",Sprachen!B17,Sprachen!C17))","v":"(Netzverbund & Inselanlagen)"},null,"[ kW ]"]
[{"$f":"IF(Sprache=\"deutsch\",Sprachen!A18,IF(Sprache=\"Français\",Sprachen!B18,Sprachen!C18))","v":"Eigenproduktion"},null,null,null,{"$f":"IF(Sprache=\"deutsch\",Sprachen!A26,IF(Sprache=\"Français\",Sprachen!B26,Sprachen!C26))","v":"an Bauherrschaft"}]
[{"$f":"IF(Sprache=\"deutsch\",Sprachen!A19,IF(Sprache=\"Français\",Sprachen!B19,Sprachen!C19))","v":"Bezug Schweiz"},null,null,null,{"$f":"IF(Sprache=\"deutsch\",Sprachen!A27,IF(Sprache=\"Français\",Sprachen!B27,Sprachen!C27))","v":"an Installateur (1)"}]
[{"$f":"IF(Sprache=\"deutsch\",Sprachen!A20,IF(Sprache=\"Français\",Sprachen!B20,Sprachen!C20))","v":"Import"},null,null,null,{"$f":"IF(Sprache=\"deutsch\",Sprachen!A28,IF(Sprache=\"Français\",Sprachen!B28,Sprachen!C28))","v":"an Handel (1)"}]
[{"$f":"IF(Sprache=\"deutsch\",Sprachen!A21,IF(Sprache=\"Français\",Sprachen!B21,Sprachen!C21))","v":"Summe Herkunft"},{"$f":"SUM(B16:B18)","v":0},null,null,{"$f":"IF(Sprache=\"deutsch\",Sprachen!A23,IF(Sprache=\"Français\",Sprachen!B23,Sprachen!C23))","v":"Summe Verkauf Schweiz"},null,{"$f":"SUM(G16:G18)","v":0}]
[{"$f":"IF(Sprache=\"deutsch\",Sprachen!A22,IF(Sprache=\"Français\",Sprachen!B22,Sprachen!C22))","v":"abzüglich Export"},null,null,null,{"$f":"IF(Sprache=\"deutsch\",Sprachen!A29,IF(Sprache=\"Français\",Sprachen!B29,Sprachen!C29))","v":"(1)  Bitte Wiederverkäufer angeben:"}]
[{"$f":"IF(Sprache=\"deutsch\",Sprachen!A23,IF(Sprache=\"Français\",Sprachen!B23,Sprachen!C23))","v":"Summe Verkauf Schweiz"},{"$f":"SUM(B19-B20)","v":0}]
[]
[]
[{"$f":"IF(Sprache=\"deutsch\",Sprachen!A30,IF(Sprache=\"Français\",Sprachen!B30,Sprachen!C30))","v":"Installation (nur in der Schweiz installierte Anlagen)"}]
[{"$f":"IF(Sprache=\"deutsch\",Sprachen!A31,IF(Sprache=\"Français\",Sprachen!B31,Sprachen!C31))","v":"3. Art der Anlagen"},null,null,null,{"$f":"IF(Sprache=\"deutsch\",Sprachen!A51,IF(Sprache=\"Français\",Sprachen!B51,Sprachen!C51))","v":"6. Anlage nach Anlagengrösse"}]
[{"$f":"IF(Sprache=\"deutsch\",Sprachen!A32,IF(Sprache=\"Français\",Sprachen!B32,Sprachen!C32))","v":"Nur Anlagen die durch Ihre Unternehmung "},{"$f":"IF(Sprache=\"deutsch\",Sprachen!A24,IF(Sprache=\"Français\",Sprachen!B24,Sprachen!C24))","v":"Leistung"},{"$f":"IF(Sprache=\"deutsch\",Sprachen!A43,IF(Sprache=\"Français\",Sprachen!B43,Sprachen!C43))","v":"Anzahl"},null,null,{"$f":"IF(Sprache=\"deutsch\",Sprachen!A24,IF(Sprache=\"Français\",Sprachen!B24,Sprachen!C24))","v":"Leistung"},{"$f":"IF(Sprache=\"deutsch\",Sprachen!A43,IF(Sprache=\"Français\",Sprachen!B43,Sprachen!C43))","v":"Anzahl"}]
[{"$f":"IF(Sprache=\"deutsch\",Sprachen!A33,IF(Sprache=\"Français\",Sprachen!B33,Sprachen!C33))","v":"im Netzverbund montiert worden sind"},"[ kW ]",{"$f":"IF(Sprache=\"deutsch\",Sprachen!A44,IF(Sprache=\"Français\",Sprachen!B44,Sprachen!C44))","v":"Anlagen"},null,null,"[ kW ]",{"$f":"IF(Sprache=\"deutsch\",Sprachen!A44,IF(Sprache=\"Français\",Sprachen!B44,Sprachen!C44))","v":"Anlagen"},null,null,{"$f":"SUM(J29:J41)","v":0},"Total Fehleranzahl"]
[{"$f":"IF(Sprache=\"deutsch\",Sprachen!A34,IF(Sprache=\"Français\",Sprachen!B34,Sprachen!C34))","v":"Einfamilienhäuser "},null,null,null,{"$f":"IF(Sprache=\"deutsch\",Sprachen!A52,IF(Sprache=\"Français\",Sprachen!B52,Sprachen!C52))","v":"Inselanlagen"},null,null,null,null,"Fehler","Informationen für Prüfung"]
[{"$f":"IF(Sprache=\"deutsch\",Sprachen!A35,IF(Sprache=\"Français\",Sprachen!B35,Sprachen!C35))","v":"Mehrfamilienhäuser "},null,null,null,{"$f":"IF(Sprache=\"deutsch\",Sprachen!A53,IF(Sprache=\"Français\",Sprachen!B53,Sprachen!C53))","v":"0.020  bis   0.250 kW"},null,null,null,{"$f":"IF(OR(ISBLANK(F29),ISBLANK(G29)),\"\",IF(AND(K29>L29,K29<=L30),\"\",IF(Sprache=\"deutsch\",Sprachen!A$94,IF(Sprache=\"Français\",Sprachen!$B$94,Sprachen!C$94))&\": \"&ROUND(K29,2)))","v":""},{"$f":"IF(OR(ISBLANK(F29),ISBLANK(G29)),0,(I29=\"\")-1)","v":0},{"$f":"F29/G29","v":{"$error":"#DIV/0!"}}]
[{"$f":"IF(Sprache=\"deutsch\",Sprachen!A36,IF(Sprache=\"Français\",Sprachen!B36,Sprachen!C36))","v":"Industrie, Gewerbe"},null,null,null,{"$f":"IF(Sprache=\"deutsch\",Sprachen!A54,IF(Sprache=\"Français\",Sprachen!B54,Sprachen!C54))","v":"0.251  bis  1.000 kW"},null,null,null,{"$f":"IF(OR(ISBLANK(F30),ISBLANK(G30)),\"\",IF(AND(K30>L30,K30<=L31),\"\",IF(Sprache=\"deutsch\",Sprachen!A$94,IF(Sprache=\"Français\",Sprachen!$B$94,Sprachen!C$94))&\": \"&ROUND(K30,1)))","v":""},{"$f":"IF(OR(ISBLANK(F30),ISBLANK(G30)),0,(I30=\"\")-1)","v":0},{"$f":"F30/G30","v":{"$error":"#DIV/0!"}},0.25]
[{"$f":"IF(Sprache=\"deutsch\",Sprachen!A37,IF(Sprache=\"Français\",Sprachen!B37,Sprachen!C37))","v":"Landwirtschaft"},null,null,null,{"$f":"IF(Sprache=\"deutsch\",Sprachen!A55,IF(Sprache=\"Français\",Sprachen!B55,Sprachen!C55))","v":"über 1.000 kW"},null,null,null,{"$f":"IF(OR(ISBLANK(F31),ISBLANK(G31)),\"\",IF(K31>L31,\"\",IF(Sprache=\"deutsch\",Sprachen!A$94,IF(Sprache=\"Français\",Sprachen!$B$94,Sprachen!C$94))&\": \"&ROUND(K31,1)))","v":""},{"$f":"IF(OR(ISBLANK(F31),ISBLANK(G31)),0,(I31=\"\")-1)","v":0},{"$error":"#DIV/0!"},1]
[{"$f":"IF(Sprache=\"deutsch\",Sprachen!A38,IF(Sprache=\"Français\",Sprachen!B38,Sprachen!C38))","v":"Dienstleistung"},null,null,null,{"$f":"IF(Sprache=\"deutsch\",Sprachen!A56,IF(Sprache=\"Français\",Sprachen!B56,Sprachen!C56))","v":"Total Inselanlagen"},{"$f":"SUM(F29:F31)","v":0},{"$f":"SUM(G29:G31)","v":0}]
[{"$f":"IF(Sprache=\"deutsch\",Sprachen!A39,IF(Sprache=\"Français\",Sprachen!B39,Sprachen!C39))","v":"Öffentliche Dienste"}]
[{"$f":"IF(Sprache=\"deutsch\",Sprachen!A40,IF(Sprache=\"Français\",Sprachen!B40,Sprachen!C40))","v":"Verkehr"},null,null,null,{"$f":"IF(Sprache=\"deutsch\",Sprachen!A57,IF(Sprache=\"Français\",Sprachen!B57,Sprachen!C57))","v":"Netzverbundanlagen"}]
[{"$f":"IF(Sprache=\"deutsch\",Sprachen!A41,IF(Sprache=\"Français\",Sprachen!B41,Sprachen!C41))","v":"Übrige Standorte"},null,null,null,{"$f":"IF(Sprache=\"deutsch\",Sprachen!A58,IF(Sprache=\"Français\",Sprachen!B58,Sprachen!C58))","v":"                        bis       4 kW"},null,null,null,{"$f":"IF(OR(ISBLANK(F35),ISBLANK(G35)),\"\",IF(K35<=L36,\"\",IF(Sprache=\"deutsch\",Sprachen!A94,IF(Sprache=\"Français\",Sprachen!$B$94,Sprachen!C94))&\": \"&ROUND(K35,1)))","v":""},{"$f":"IF(OR(ISBLANK(F35),ISBLANK(G35)),0,(I35=\"\")-1)","v":0},{"$f":"F35/G35","v":{"$error":"#DIV/0!"}}]
[{"$f":"IF(Sprache=\"deutsch\",Sprachen!A42,IF(Sprache=\"Français\",Sprachen!B42,Sprachen!C42))","v":"Total Netzverbundanlagen"},{"$f":"SUM(B28:B35)","v":0},{"$f":"SUM(C28:C35)","v":0},null,{"$f":"IF(Sprache=\"deutsch\",Sprachen!A59,IF(Sprache=\"Français\",Sprachen!B59,Sprachen!C59))","v":"über     4 kW  bis     20 kW"},null,null,null,{"$f":"IF(OR(ISBLANK(F36),ISBLANK(G36)),\"\",IF(AND(K36>L36,K36<=L37),\"\",IF(Sprache=\"deutsch\",Sprachen!A$94,IF(Sprache=\"Français\",Sprachen!$B$94,Sprachen!C$94))&\": \"&ROUND(K36,2)))","v":""},{"$f":"IF(OR(ISBLANK(F36),ISBLANK(G36)),0,(I36=\"\")-1)","v":0},{"$f":"F36/G36","v":{"$error":"#DIV/0!"}},4]
[null,null,null,null,{"$f":"IF(Sprache=\"deutsch\",Sprachen!A60,IF(Sprache=\"Français\",Sprachen!B60,Sprachen!C60))","v":"über   20 kW  bis     30 kW"},null,null,null,{"$f":"IF(OR(ISBLANK(F37),ISBLANK(G37)),\"\",IF(AND(K37>L37,K37<=L38),\"\",IF(Sprache=\"deutsch\",Sprachen!A$94,IF(Sprache=\"Français\",Sprachen!$B$94,Sprachen!C$94))&\": \"&ROUND(K37,2)))","v":""},{"$f":"IF(OR(ISBLANK(F37),ISBLANK(G37)),0,(I37=\"\")-1)","v":0},{"$error":"#DIV/0!"},20]
[{"$f":"IF(Sprache=\"deutsch\",Sprachen!A45,IF(Sprache=\"Français\",Sprachen!B45,Sprachen!C45))","v":"4. Ersatzanlagen"},null,null,null,{"$f":"IF(Sprache=\"deutsch\",Sprachen!A61,IF(Sprache=\"Français\",Sprachen!B61,Sprachen!C61))","v":"über   30 kW  bis     50 kW"},null,null,null,{"$f":"IF(OR(ISBLANK(F38),ISBLANK(G38)),\"\",IF(AND(K38>L38,K38<=L39),\"\",IF(Sprache=\"deutsch\",Sprachen!A$94,IF(Sprache=\"Français\",Sprachen!$B$94,Sprachen!C$94))&\": \"&ROUND(K38,2)))","v":""},0,{"$error":"#DIV/0!"},30]
[{"$f":"IF(Sprache=\"deutsch\",Sprachen!A32,IF(Sprache=\"Français\",Sprachen!B32,Sprachen!C32))","v":"Nur Anlagen die durch Ihre Unternehmung "},{"$f":"IF(Sprache=\"deutsch\",Sprachen!A24,IF(Sprache=\"Français\",Sprachen!B24,Sprachen!C24))","v":"Leistung"},{"$f":"IF(Sprache=\"deutsch\",Sprachen!A43,IF(Sprache=\"Français\",Sprachen!B43,Sprachen!C43))","v":"Anzahl"},null,{"$f":"IF(Sprache=\"deutsch\",Sprachen!A62,IF(Sprache=\"Français\",Sprachen!B62,Sprachen!C62))","v":"über   50 kW  bis   100 kW"},null,null,null,{"$f":"IF(OR(ISBLANK(F39),ISBLANK(G39)),\"\",IF(AND(K39>L39,K39<=L40),\"\",IF(Sprache=\"deutsch\",Sprachen!A$94,IF(Sprache=\"Français\",Sprachen!$B$94,Sprachen!C$94))&\": \"&ROUND(K39,2)))","v":""},0,{"$error":"#DIV/0!"},50]
[{"$f":"IF(Sprache=\"deutsch\",Sprachen!A33,IF(Sprache=\"Français\",Sprachen!B33,Sprachen!C33))","v":"im Netzverbund montiert worden sind"},"[ kW ]",{"$f":"IF(Sprache=\"deutsch\",Sprachen!A44,IF(Sprache=\"Français\",Sprachen!B44,Sprachen!C44))","v":"Anlagen"},null,{"$f":"IF(Sprache=\"deutsch\",Sprachen!A63,IF(Sprache=\"Français\",Sprachen!B63,Sprachen!C63))","v":"über 100 kW  bis 1000 kW"},null,null,null,{"$f":"IF(OR(ISBLANK(F40),ISBLANK(G40)),\"\",IF(AND(K40>L40,K40<=L41),\"\",IF(Sprache=\"deutsch\",Sprachen!A$94,IF(Sprache=\"Français\",Sprachen!$B$94,Sprachen!C$94))&\": \"&ROUND(K40,2)))","v":""},0,{"$error":"#DIV/0!"},100]
[{"$f":"IF(Sprache=\"deutsch\",Sprachen!A46,IF(Sprache=\"Français\",Sprachen!B46,Sprachen!C46))","v":"Neuanlagen"},{"$f":"B43-B42","v":0},{"$f":"C43-C42","v":0},null,{"$f":"IF(Sprache=\"deutsch\",Sprachen!A64,IF(Sprache=\"Français\",Sprachen!B64,Sprachen!C64))","v":"über 1000 kW"},null,null,null,{"$f":"IF(OR(ISBLANK(F41),ISBLANK(G41)),\"\",IF(K41>L41,\"\",IF(Sprache=\"deutsch\",Sprachen!A$94,IF(Sprache=\"Français\",Sprachen!$B$94,Sprachen!C$94))&\": \"&ROUND(K41,1)))","v":""},0,{"$error":"#DIV/0!"},1000]
[{"$f":"IF(Sprache=\"deutsch\",Sprachen!A47,IF(Sprache=\"Français\",Sprachen!B47,Sprachen!C47))","v":"Ersetzte Anlagen"},null,null,null,{"$f":"IF(Sprache=\"deutsch\",Sprachen!A42,IF(Sprache=\"Français\",Sprachen!B42,Sprachen!C42))","v":"Total Netzverbundanlagen"},{"$f":"SUM(F35:F41)","v":0},{"$f":"SUM(G35:G41)","v":0}]
[{"$f":"IF(Sprache=\"deutsch\",Sprachen!A42,IF(Sprache=\"Français\",Sprachen!B42,Sprachen!C42))","v":"Total Netzverbundanlagen"},{"$f":"B36","v":0},{"$f":"C36","v":0},null,{"$f":"IF(Sprache=\"deutsch\",Sprachen!A65,IF(Sprache=\"Français\",Sprachen!B65,Sprachen!C65))","v":"Total Anlagen"},{"$f":"SUM(F32,F42)","v":0},{"$f":"SUM(G32,G42)","v":0}]
[]
[{"$f":"IF(Sprache=\"deutsch\",Sprachen!A48,IF(Sprache=\"Français\",Sprachen!B48,Sprachen!C48))","v":"5. Fassadenanlagen"},null,null,null,{"$f":"IF(Sprache=\"deutsch\",Sprachen!A66,IF(Sprache=\"Français\",Sprachen!B66,Sprachen!C66))","v":"Bemerkungen"}]
[{"$f":"IF(Sprache=\"deutsch\",Sprachen!A32,IF(Sprache=\"Français\",Sprachen!B33,Sprachen!C32))","v":"Nur Anlagen die durch Ihre Unternehmung "},{"$f":"IF(Sprache=\"deutsch\",Sprachen!A24,IF(Sprache=\"Français\",Sprachen!B24,Sprachen!C24))","v":"Leistung"},{"$f":"IF(Sprache=\"deutsch\",Sprachen!A43,IF(Sprache=\"Français\",Sprachen!B43,Sprachen!C43))","v":"Anzahl"}]
[{"$f":"IF(Sprache=\"deutsch\",Sprachen!A33,IF(Sprache=\"Français\",Sprachen!B33,Sprachen!C33))","v":"im Netzverbund montiert worden sind"},"[ kW ]",{"$f":"IF(Sprache=\"deutsch\",Sprachen!A44,IF(Sprache=\"Français\",Sprachen!B44,Sprachen!C44))","v":"Anlagen"}]
[{"$f":"IF(Sprache=\"deutsch\",Sprachen!A49,IF(Sprache=\"Français\",Sprachen!B49,Sprachen!C49))","v":"0° - 74° (Schrägdach, Flachdach, Freifläche…)"},{"$f":"B50-B49","v":0},{"$f":"C50-C49","v":0}]
[{"$f":"IF(Sprache=\"deutsch\",Sprachen!A50,IF(Sprache=\"Français\",Sprachen!B50,Sprachen!C50))","v":"75° - 90° (Fassade)"}]
[{"$f":"IF(Sprache=\"deutsch\",Sprachen!A42,IF(Sprache=\"Français\",Sprachen!B42,Sprachen!C42))","v":"Total Netzverbundanlagen"},{"$f":"B43","v":0},{"$f":"C43","v":0}]
[]
[]
[{"$f":"IF(Sprache=\"deutsch\",Sprachen!A68,IF(Sprache=\"Français\",Sprachen!B68,Sprachen!C68))","v":"7. Zusatzfrage PVT Systeme"}]
[{"$f":"IF(Sprache=\"deutsch\",Sprachen!A69,IF(Sprache=\"Français\",Sprachen!B69,Sprachen!C69))","v":"Installierte PV (Leistung)"},null,"kW"]
[{"$f":"IF(Sprache=\"deutsch\",Sprachen!A70,IF(Sprache=\"Français\",Sprachen!B70,Sprachen!C70))","v":"Installierte Fläche"},null,"m2"]
[{"$f":"IF(Sprache=\"deutsch\",Sprachen!A71,IF(Sprache=\"Français\",Sprachen!B71,Sprachen!C71))","v":"Anzahl Systeme"},null,{"$f":"IF(Sprache=\"deutsch\",Sprachen!A72,IF(Sprache=\"Français\",Sprachen!B72,Sprachen!C72))","v":"Stück"}]
[]
[]
[{"$f":"IF(Sprache=\"deutsch\",Sprachen!A73,IF(Sprache=\"Français\",Sprachen!B73,Sprachen!C73))","v":"Grundsätze"}]
[{"$f":"IF(Sprache=\"deutsch\",Sprachen!A74,IF(Sprache=\"Français\",Sprachen!B74,Sprachen!C74))","v":"Datenschutz\n"},{"$f":"IF(Sprache=\"deutsch\",Sprachen!A78,IF(Sprache=\"Français\",Sprachen!B78,Sprachen!C78))","v":"Die Zahlen der einzelnen Firmen werden streng vertraulich behandelt. Sie sind lediglich den verantwortlichen Personen von Swissolar sowie dem Bundesamt für Energie, Sektion Analysen und Perspektiven, zugänglich."}]
[{"$f":"IF(Sprache=\"deutsch\",Sprachen!A75,IF(Sprache=\"Français\",Sprachen!B75,Sprachen!C75))","v":"Zeitpunkt"},{"$f":"IF(Sprache=\"deutsch\",Sprachen!A79,IF(Sprache=\"Français\",Sprachen!B79,Sprachen!C79))","v":"Massgebend für die Statistik ist der Zeitpunkt der Verkäufe und/oder Installationen im Jahre 2023."}]
[{"$f":"IF(Sprache=\"deutsch\",Sprachen!A76,IF(Sprache=\"Français\",Sprachen!B76,Sprachen!C76))","v":"Erhebungsgrössen"},{"$f":"IF(Sprache=\"deutsch\",Sprachen!A80,IF(Sprache=\"Français\",Sprachen!B80,Sprachen!C80))","v":"Für die Erhebung der photovoltaischen Nutzung der Solarmodule ist die Spitzenleistung in kWDC massgebend."}]
[{"$f":"IF(Sprache=\"deutsch\",Sprachen!A77,IF(Sprache=\"Français\",Sprachen!B77,Sprachen!C77))","v":"Rücksendung"},{"$f":"IF(Sprache=\"deutsch\",Sprachen!A81,IF(Sprache=\"Français\",Sprachen!B81,Sprachen!C81))","v":"Freitag, 09. Februar 2024 an marktumfrage@swissolar.ch"}]

{"sheet":"Sprachen","index":1,"n_rows":98,"n_cols":3,"rows_kept":98,"cut":false,"hidden":true,"merged":[]}
["Deutsch","Französisch","Italienisch"]
["Statistik Sonnenenergie - Photovoltaik","Statistique énergie solaire photovoltaïque","Statistica sull'energia solare fotovoltaico"]
["Unternehmen","Entreprise","Dati dell'azienda"]
["Firma","Nom","Nome dell'azienda"]
["Strasse","Rue","Indirizzo"]
["PLZ/Ort","NPA/lieu","NAP/Luogo"]
["Kontaktperson","Personne de contact","Persona di contatto"]
["Telefon","Téléphone","Telefono"]
["E-Mail","E-Mail","E-Mail"]
["Hersteller","Fabricant","Fabbricante"]
["Importeur","Importateur","Importatore"]
["Handelsunternehmung","Revendeur","Impresa commerciale"]
["Installateur","Installateur","Installatore"]
["Andere","Autre","Altro"]
["Produktion & Handel","Production & commercialisation","Produzione & Commercio"]
["1. Herkunft der Module","1. Origine des modules","1. Provenienza dei moduli"]
["(Netzverbund & Inselanlagen)","(installations isolées & raccordées)","(in parallelo alla rete e in isola)"]
["Eigenproduktion","Production propre","Produzione propria"]
["Bezug Schweiz","Acheté en Suisse","Acquisti dalla Svizzera"]
["Import","Import","Import"]
["Summe Herkunft","Total origine","Totale provenienza"]
["abzüglich Export","moins export","deduzione Export"]
["Summe Verkauf Schweiz","Total des ventes en Suisse","Totale vendita in Svizzera"]
["Leistung","Puissance","Potenza"]
["2. Vertrieb der Module","2. Distribution des modules","2. Distribuzione dei moduli"]
["an Bauherrschaft","aux maîtres d'ouvrages","a committenti"]
["an Installateur (1)","par l'installateur (1)","a installatori (1)"]
["an Handel (1)","par d'autres revendeurs (1)","a rivenditori (1)"]
["(1)  Bitte Wiederverkäufer angeben:","(1) merci d'indiquer le racheteur:","(1)  P.f. indicare il rivenditore:"]
["Installation (nur in der Schweiz installierte Anlagen)","Installation (uniquement le installations en Suisse)","Installazione (solo impianti installati in Svizzera)"]
["3. Art der Anlagen","3. Type d'installation","3. Tipo degli impianto"]
["Nur Anlagen die durch Ihre Unternehmung ","Uniquement les installations réalisées par ","Solo impianti installati dalla sua azienda"]
["im Netzverbund montiert worden sind","votre entreprises et raccordées au réseau","in parallelo alla rete"]
["Einfamilienhäuser ","Maisons individuelles","Case monofamigliari"]
["Mehrfamilienhäuser ","Immeubles","Case plurifamigliari"]
["Industrie, Gewerbe","Industrie, commerce","Industria, artigianato"]
["Landwirtschaft","Agriculture","Agricoltura"]
["Dienstleistung","Services","Servizi"]
["Öffentliche Dienste","Secteur public","Servizi pubblici"]
["Verkehr","Transports","Trasporti"]
["Übrige Standorte","Divers","Altri luoghi"]
["Total Netzverbundanlagen","Total des install. raccordées au réseau","Totale imp. in parallelo alla rete"]
["Anzahl","Nombre","Numero"]
["Anlagen","d'install.","impianti"]
["4. Ersatzanlagen","4. Remplacement d'installations","4. Impianti sostitutivi"]
["Neuanlagen","Nouvelles installations","Impianti nuovi"]
["Ersetzte Anlagen","Installations remplacées","Impianti sostituiti"]
["5. Fassadenanlagen","5. Installations en façade","5. Impianti in facciata"]
["0° - 74° (Schrägdach, Flachdach, Freifläche…)","0° - 74° (toiture inclinée, toiture plate, au sol…)","0° - 74° (tetto a falda, tetto piano, superficie libera…)"]
["75° - 90° (Fassade)","75° - 90° (Façade)","75° - 90° (facciate)"]
["6. Anlage nach Anlagengrösse","6. Installations selon la taille","6. Impianti per dimensione dell'impianto"]
["Inselanlagen","Installations isolées","Impianti in isola"]
["0.020  bis   0.250 kW","0.020  à   0.250 kW","da 0.020  a 0.250 kW"]
["0.251  bis  1.000 kW","0.251  à  1.000 kW","da 0.251  a 1.000 kW"]
["über 1.000 kW","plus que 1.000 kW","oltre 1.000 kW"]
["Total Inselanlagen","Total installations isolées","Totale impianti in isola"]
["Netzverbundanlagen","Installations raccordées","Impianti in parallelo alla rete"]
["                        bis       4 kW","                     jusqu'à   4 kW","             fino a     4 kW"]
["über     4 kW  bis     20 kW","plus de     4 kW  à     20 kW","da     4 kW  a    20 kW"]
["über   20 kW  bis     30 kW","plus de   20 kW  à     30 kW","da   20 kW  a    30 kW"]
["über   30 kW  bis     50 kW","plus de   30 kW  à     50 kW","da   30 kW  a    50 kW"]
["über   50 kW  bis   100 kW","plus de   50 kW  à   100 kW","da   50 kW  a  100 kW"]
["über 100 kW  bis 1000 kW","plus de 100 kW  à 1000 kW","da 100 kW  a 1000 kW"]
["über 1000 kW","plus de 1000 kW","oltre 1000 kW"]
["Total Anlagen","Total installations","Totale impianti"]
["Bemerkungen","Remarques","Osservazioni"]
["Zusatzfragen","Questions supplémentaires","Domande supplementari"]
["7. Zusatzfrage PVT Systeme","7. Question suppl. Systèmes PVT","7. Domanda aggiuntiva sui sistemi ibridi PVT"]
["Installierte PV (Leistung)","PV installé (Puissance)","PV installato (potenza)"]
["Installierte Fläche","Surface installée","Superficie installata"]
["Anzahl Systeme","Nombre de systèmes","Numero di sistemi"]
["Stück","pieces","pezzi"]
["Grundsätze","Principes","Aspetti generali"]
["Datenschutz\n","Protections des données","Protezione dei dati"]
["Zeitpunkt","Date","Periodo considerato"]
["Erhebungsgrössen","Données","Parametri di riferimento"]
["Rücksendung","Retour","Termine di risposta"]
["Die Zahlen der einzelnen Firmen werden streng vertraulich behandelt. Sie sind lediglich den verantwortlichen Personen von Swissolar sowie dem Bundesamt für Energie, Sektion Analysen und Perspektiven, zugänglich.","Les chiffres des différentes entreprises sont strictement confidentiels. Elles ne sont accessibles qu'aux personnes responsables de Swissolar et de l'Office fédéral de l'énergie, Section Analyses et perspectives.\n\n","I dati forniti dalle singole aziende vengono trattati in modo strettamente confidenziale. Essi sono a accessibili unicamente ai collaboratori di Swissolare e dell'Ufficio federale dell'energia, Sezione Analisi e Prospettive, incaricati di elaborare le statistiche."]
[{"$f":"\"Massgebend für die Statistik ist der Zeitpunkt der Verkäufe und/oder Installationen im Jahre \" & Jahr & \".\"","v":"Massgebend für die Statistik ist der Zeitpunkt der Verkäufe und/oder Installationen im Jahre 2023."},{"$f":"\"Ne sont à considerer que les ventes ou montages qui ont eu lieu en \" & Jahr & \".\"","v":"Ne sont à considerer que les ventes ou montages qui ont eu lieu en 2023."},{"$f":"\"Per la statistica fanno stato unicamente i prodotti venduti o installati nel \" & Jahr & \".\"","v":"Per la statistica fanno stato unicamente i prodotti venduti o installati nel 2023."}]
["Für die Erhebung der photovoltaischen Nutzung der Solarmodule ist die Spitzenleistung in kWDC massgebend.","Pour l'étude de l'utilisation photovoltaïque des modules solaires, la puissance de crête en kWDC est déterminante. ","Per il rilevamento dei moduli solare ad uso fotovoltaico fa stato la potenza di punta in kWDC."]
[{"$f":"TEXT(Datum_Eingang,\"TTTT, TT. MMMM JJJJ\")& \" an marktumfrage@swissolar.ch\"","v":"Freitag, 09. Februar 2024 an marktumfrage@swissolar.ch"},{"$f":"TEXT(Datum_Eingang,\"[$-100C]TTTT, T. MMMM JJJJ;@\")& \" à l'adresse e-mail marktumfrage@swissolar.ch\"","v":"vendredi, 9. février 2024 à l'adresse e-mail marktumfrage@swissolar.ch"},{"$f":"TEXT(Datum_Eingang,\"[$-810]TTTT, T. MMMM JJJJ;@\")& \" all'indirizzo e-mail marktumfrage@swissolar.ch\"","v":"venerdì, 9. febbraio 2024 all'indirizzo e-mail marktumfrage@swissolar.ch"}]
["        Ich habe keine Anlagen produziert, gehandelt oder installiert","        Je n'ai pas fabriqué, commercialisé ou réalisé d'installation ","        Non ho fabbricato, negoziato o installato alcun impianto"]
[]
[]
["Fehlemeldungen"]
["Status ok","Statut ok","Stato ok"]
["Status: unvollständig oder Fehler!","Status: incomplet ou erreur!","Stato: incompleto o errore!"]
["Fehler","Erreur","Errore"]
[{"$f":"Referenz!C8","v":"Total Tabelle 1 <> Total Tabelle 2"},"Total table 1 <> total table 2","Totale tabella 1 <> totale tabella 2"]
[{"$f":"Referenz!C9","v":"Tabelle 2 an Bauherrschaft <> (Leistung Total Tabelle 3 + Inselanlagen)"},"Table 2 aux maîtres d'ouvrages <> (puissance total table 3 + installations isolées)","tabella 2 a committenti <> potenza totale tabella 3"]
[{"$f":"Referenz!C10","v":"Leistung: Total Tabelle 3 <> Total Netzverbund Tabelle 6"},"Puissance: total table 3 <> total installations raccordées table 6","Potenza: totale tabella 3 <> Totale imp. in parallelo alla rete tabella 6"]
[{"$f":"Referenz!C11","v":"Anzahl Anlagen: Total Tabelle 3 <> Total Netzverbund Tabelle 6"},"Nombre d'installations: total table 3 <> total installations raccordées table 6","Numero impianti: totale tabella 3 <> Totale imp. in parallelo alla rete tabella 6"]
["Generelle Eingabe in A11 falsch","Information général dans A11 incorrecte","Informazioni generali in A11 non corrette"]
["Die durchschnittliche Anlagengrösse ist ausserhalb der angegebenen Werte","La taille moyenne des installations est en dehors des valeurs spécifiées","La dimensione media dei impianti è al di fuori dei valori specificati"]
["Falls Fehler, hier angezeigt:","Si erreur, affiché ici:","Se a errore, visualizzati qui:"]
[]
[]
[null,0]

{"sheet":"Referenz","index":2,"n_rows":23,"n_cols":3,"rows_kept":23,"cut":false,"hidden":true,"merged":[]}
["Referenztabelle"]
["Version","1.3.1"]
["Jahr",2023]
["Einreichedatum","2024-02-09"]
["Version","2024-01-12"]
[]
["Prüfungen"]
[null,{"$f":"ROUND(PV_Module!B21,0)=ROUND(PV_Module!G19,0)","v":true},"Total Tabelle 1 <> Total Tabelle 2"]
[null,{"$f":"ROUND(PV_Module!G16,0)=ROUND(PV_Module!B36+PV_Module!F32,0)","v":true},"Tabelle 2 an Bauherrschaft <> (Leistung Total Tabelle 3 + Inselanlagen)"]
[null,{"$f":"ROUND(PV_Module!B36,0)=ROUND(PV_Module!F42,0)","v":true},"Leistung: Total Tabelle 3 <> Total Netzverbund Tabelle 6"]
[null,{"$f":"ROUND(PV_Module!C36,0)=ROUND(PV_Module!G42,0)","v":true},"Anzahl Anlagen: Total Tabelle 3 <> Total Netzverbund Tabelle 6"]
[null,{"$f":"OR(SUM(PV_Module!B21,PV_Module!B36,PV_Module!C36,PV_Module!B42,PV_Module!C42,PV_Module!B49,PV_Module!C49,PV_Module!F43,PV_Module!G43)=0,AND(SUM(PV_Module!B21,PV_Module!B36,PV_Module!C36,PV_Module!B42,PV_Module!C42,PV_Module!B49,PV_Module!C49,PV_Module!F43,PV_Module!G43)<>0,Export!E16=0))","v":true},"Generelle Eingabe in A11 falsch"]
[null,{"$f":"PV_Module!J27=0","v":true},"Die durchschnittliche Anlagengrösse ist ausserhalb der angegebenen Werte"]
[]
[]
[]
[]
[]
["History Versionen","1.0.1","Version für SSOE 2020 (Original)"]
[null,"1.1.1","Version für SSOE 2021 (nur Jahrzahl erhöht)"]
[null,"1.2","Version für SSOE 2022 (nur orange Felder bearbeitbar / Pull-Down Speicher & PVT)"]
[null,"1.3","Version für SSOE 2023 (Angaben zu Speicher entfernt, Leistung Inselanlagen angepasst, Tabs Sprachen und Export angepasst)"]
[null,"1.3.1","Version für SSOE 2023 (Formelfehler bei PVT korrigiert - auch Makro für Auslesung in Rücklauffile)"]

{"sheet":"Export","index":3,"n_rows":107,"n_cols":16,"rows_kept":107,"cut":false,"hidden":true,"merged":[[84,0,86,0],[27,0,32,0],[33,0,36,0],[37,0,54,0],[40,7,43,7],[55,0,62,0],[63,0,78,0],[79,0,80,0],[81,0,82,0]]}
["Statistik Sonnenenergie - Erhebung PV-Anlagen"]
["Zusammenzug und Datenübertragung von der Firmendatei in die Auswertung Markterhebung"]
[null,null,null,null,"Export3",null,null,null,null,null,null,null,"Blatt Imp3 Rücklauffile: Spalten-Struktur und -Inhalt (04.01.2024)"]
[]
[null,"Kd-Nr.",null,{"$f":"MID(D7,SEARCH(\"[\",D7)+1,8)","v":"SSOE_202"},{"$f":"D5","v":"SSOE_202"},null,"Dateiname muss mit der 8-stell. Firmen-ID beginnen (Aktual. mit <F9>)",null,null,null,null,null,"Bereich Export3 =>","Kd-Nr.",null,1]
[null,"Inhalt",null,"Originalwert",{"$f":"\"Import\"","v":"Import"},null,null,null,null,null,null,null,null,"Inhalt",null,2]
[null,"Dateiname",null,{"$f":"CELL(\"dateiname\")","v":"https://swissolar-my.sharepoint.com/personal/datasync_swissolar_ch/Documents/Allgemein/40_Markt Politik/Markt/Statistik Sonnenenergie/2023/04_Formulare/[SSOE_2023_Formular_PV_dfi_20240112.xlsx]PV_Module"},{"$f":"D7","v":"https://swissolar-my.sharepoint.com/personal/datasync_swissolar_ch/Documents/Allgemein/40_Markt Politik/Markt/Statistik Sonnenenergie/2023/04_Formulare/[SSOE_2023_Formular_PV_dfi_20240112.xlsx]PV_Module"},null,null,null,null,null,null,null,null,"Dateiname",null,3]
[null,"Jahr",null,{"$f":"PV_Module!G1","v":2023},{"$f":"D8","v":2023},null,null,null,null,null,null,null,null,"Jahr",null,4]
[null,"Sprache",null,{"$f":"Sprache","v":"Deutsch"},{"$f":"D9","v":"Deutsch"},null,null,null,null,null,null,null,"Angaben der Firma","Sprache - Anz. Antw.",null,5]
[null,"Firma",null,{"$f":"PV_Module!B4","v":0},{"$f":"IF(D10=0,\"-\",D10)","v":"-"},null,null,null,null,null,null,null,null,"Firma",null,6]
[null,"Strasse",null,{"$f":"PV_Module!B5","v":0},{"$f":"IF(D11=0,\"-\",D11)","v":"-"},null,null,null,null,null,null,null,null,"Strasse",null,7]
[null,"PLZ/Ort",null,{"$f":"PV_Module!B6","v":0},"-",null,null,null,null,null,null,null,null,"PLZ/Ort",null,8]
[null,"Kontaktperson",null,{"$f":"PV_Module!B7","v":0},"-",null,null,null,null,null,null,null,null,"Kontaktperson",null,9]
[null,"Telefon",null,{"$f":"PV_Module!B8","v":0},"-",null,null,null,null,null,null,null,null,"Telefon",null,10]
[null,"E-Mail",null,{"$f":"PV_Module!B9","v":0},"-",null,null,null,null,null,null,null,null,"E-Mail",null,11]
[null,"Keine Anlagen",null,false,{"$f":"IF(D16,1,0)","v":0},null,null,null,null,null,null,null,null,"Keine Anl.",null,12]
[null,"Hersteller",null,false,{"$f":"IF(D17,1,0)","v":0},null,null,null,null,null,null,null,null,"Her-steller",null,13]
[null,"Importeur",null,false,0,null,null,null,null,null,null,null,null,"Impor-teur",null,14]
[null,"Handelsuntern.",null,false,0,null,null,null,null,null,null,null,null,"Handels-untern.",null,15]
[null,"Installateur",null,false,0,null,null,null,null,null,null,null,null,"Installa-teur",null,16]
[null,"Andere",null,false,0,null,null,null,null,null,null,null,null,"Andere",null,17]
[null,"Bemerkungen",null,null,null,null,null,null,null,null,null,null,"Daten zur Erhebung und zum Import","Bemerkungen",null,18]
[null,"Bearbeitet durch",null,null,null,null,null,null,null,null,null,null,null,"Bearb. durch",null,19]
[null,"Eingang",null,null,null,null,null,null,null,null,null,null,null,"Eingang",null,20]
[null,"Erfass./Import",null,{"$f":"NOW()","v":"2024-01-12T12:25:10.980"},{"$f":"D25","v":"2024-01-12T12:25:10.980"},null,null,null,null,null,null,null,null,"Erfass./Import",null,21]
[null,"Status",null,null,null,null,null,null,null,null,null,null,null,"Status der Erhebung",null,22]
[null,"Bemerkungen Firma",null,{"$f":"PV_Module!E46&\" // \"&PV_Module!E47&\" // \"&PV_Module!E48&\" // \"&PV_Module!E49&\" // \"&PV_Module!E50","v":" //  //  //  // "},{"$f":"D27","v":" //  //  //  // "},null,null,null,null,null,null,null,null,null,null,23]
["Herkunft","Bezug Schweiz","[kWp]",{"$f":"PV_Module!B17","v":0},{"$f":"D28","v":0},null,null,null,null,null,null,null,"Herkunft","Bezug Schweiz","[kWp]",24]
[null,"Eigenproduktion","[kWp]",{"$f":"PV_Module!B16","v":0},{"$f":"D29","v":0},null,null,null,null,null,null,null,null,"Eigenproduktion","[kWp]",25]
[null,"Import","[kWp]",{"$f":"PV_Module!B18","v":0},0,null,null,null,null,null,null,null,null,"Import","[kWp]",26]
[null,"Summe Herkunft","[kWp]",{"$f":"PV_Module!B19","v":0},0,null,null,null,null,null,null,null,null,"Summe Herkunft","[kWp]",27]
[null,"Export","[kWp]",{"$f":"PV_Module!B20","v":0},0,null,null,null,null,null,null,null,null,"Export","[kWp]",28]
[null,"Verkauf Schweiz","[kWp]",{"$f":"PV_Module!B21","v":0},0,null,null,null,null,null,null,null,null,"Verkauf Schweiz","[kWp]",29]
["Vertrieb","an Bauherrschaft","[kWp]",{"$f":"PV_Module!G16","v":0},{"$f":"D34","v":0},null,null,null,null,null,null,null,"Vertrieb","an Bauherrschaft","[kWp]",30]
[null,"an Installateur","[kWp]",{"$f":"PV_Module!G17","v":0},0,null,null,null,null,null,null,null,null,"an Installateur","[kWp]",31]
[null,"an Handel","[kWp]",{"$f":"PV_Module!G18","v":0},0,null,null,null,null,null,null,null,null,"an Handel","[kWp]",32]
[null,"Verkauf Schweiz","[kWp]",{"$f":"PV_Module!G19","v":0},0,null,null,null,null,null,null,null,null,"Verkauf Schweiz","[kWp]",33]
["Art der Anlagen (Netzverbund)","Summe Tab. 3a",null,{"$f":"SUM(D39:D46)","v":0},0,null,null,null,null,null,null,null,"Art der Anlagen (Netzverbund)","Summe Tab. 3a","[kWp]",34]
[null,"EFH","[kWp]",{"$f":"PV_Module!B28","v":0},0,null,null,null,null,null,null,null,null,"EFH","[kWp]",35]
[null,"MFH","[kWp]",{"$f":"PV_Module!B29","v":0},0,null,null,null,null,null,null,null,null,"MFH","[kWp]",36]
[null,"Ind. / Gew.","[kWp]",{"$f":"PV_Module!B30","v":0},0,null,null,null,null,null,null,null,null,"Ind. / Gew.","[kWp]",37]
[null,"Landwirtsch.","[kWp]",{"$f":"PV_Module!B31","v":0},0,null,null,null,null,null,null,null,null,"Landwirtsch.","[kWp]",38]
[null,"Dienstleistg","[kWp]",{"$f":"PV_Module!B32","v":0},0,null,null,null,null,null,null,null,null,"Dienstleistg","[kWp]",39]
[null,"öff. Dienste","[kWp]",{"$f":"PV_Module!B33","v":0},0,null,null,null,null,null,null,null,null,"öff. Dienste","[kWp]",40]
[null,"Verkehr","[kWp]",{"$f":"PV_Module!B34","v":0},0,null,null,null,null,null,null,null,null,"Verkehr","[kWp]",41]
[null,"Diverse","[kWp]",{"$f":"PV_Module!B35","v":0},0,null,null,null,null,null,null,null,null,"Diverse","[kWp]",42]
[null,"Summe Tab. 3b",null,{"$f":"SUM(D48:D55)","v":0},0,null,null,null,null,null,null,null,null,"Summe Tab. 3b","[Anzahl]",43]
[null,"EFH","[Anzahl]",{"$f":"PV_Module!C28","v":0},0,null,null,null,null,null,null,null,null,"EFH","[Anzahl]",44]
[null,"MFH","[Anzahl]",{"$f":"PV_Module!C29","v":0},0,null,null,null,null,null,null,null,null,"MFH","[Anzahl]",45]
[null,"Ind. / Gew.","[Anzahl]",{"$f":"PV_Module!C30","v":0},0,null,null,null,null,null,null,null,null,"Ind. / Gew.","[Anzahl]",46]
[null,"Landwirtsch.","[Anzahl]",{"$f":"PV_Module!C31","v":0},0,null,null,null,null,null,null,null,null,"Landwirtsch.","[Anzahl]",47]
[null,"Dienstleistg","[Anzahl]",{"$f":"PV_Module!C32","v":0},0,null,null,null,null,null,null,null,null,"Dienstleistg","[Anzahl]",48]
[null,"öff. Dienste","[Anzahl]",{"$f":"PV_Module!C33","v":0},0,null,null,null,null,null,null,null,null,"öff. Dienste","[Anzahl]",49]
[null,"Verkehr","[Anzahl]",{"$f":"PV_Module!C34","v":0},0,null,null,null,null,null,null,null,null,"Verkehr","[Anzahl]",50]
[null,"Diverse","[Anzahl]",{"$f":"PV_Module!C35","v":0},0,null,null,null,null,null,null,null,null,"Diverse","[Anzahl]",51]
["Anlagengrösse Insel","Summe Tab 6a [P]","[KWp]",{"$f":"D57+D59+D61","v":0},0,null,null,null,null,null,null,null,"Anlagengrösse Insel","Summe Tab 6a [P]","[KWp]",52]
[null,"20 -250 Wp","[kWp]",{"$f":"PV_Module!F29","v":0},0,null,null,null,null,null,null,null,null,"20 -250 Wp","[kWp]",53]
[null,"20 - 250 Wp","[Anzahl]",{"$f":"PV_Module!G29","v":0},0,null,null,null,null,null,null,null,null,"20 - 250 Wp","[Anzahl]",54]
[null,"251 - 1'000 Wp","[kWp]",{"$f":"PV_Module!F30","v":0},0,null,null,null,null,null,null,null,null,"251 - 1'000 Wp","[kWp]",55]
[null,"251 - 1'000 Wp","[Anzahl]",{"$f":"PV_Module!G30","v":0},0,null,null,null,null,null,null,null,null,"251 - 1'000 Wp","[Anzahl]",56]
[null,"> 1'000 Wp","[kWp]",{"$f":"PV_Module!F31","v":0},0,null,null,null,null,null,null,null,null,"> 1'000 Wp","[kWp]",57]
[null,"> 1'000 Wp","[Anzahl]",{"$f":"PV_Module!G31","v":0},0,null,null,null,null,null,null,null,null,"> 1'000 Wp","[Anzahl]",58]
[null,"Summe Tab 6a [St.]","[Anzahl]",{"$f":"D58+D60+D62","v":0},0,null,null,null,null,null,null,null,null,"Summe Tab 6a [St.]","[Anzahl]",59]
["Anlagengrösse Netzverbund","bis 4 kW","[kWp]",{"$f":"PV_Module!$F$35","v":0},0,null,null,null,null,null,null,null,"Anlagengrösse Netzverbund","bis 4 kW","[kWp]",60]
[null,"bis 4 kW","[Anzahl]",{"$f":"PV_Module!$G$35","v":0},0,null,null,null,null,null,null,null,null,"bis 4 kW","[Anzahl]",61]
[null,"4 bis 20 kW","[kWp]",{"$f":"PV_Module!$F$36","v":0},0,null,null,null,null,null,null,null,null,"4 bis 20 kW","[kWp]",62]
[null,"4 bis 20 kW","[Anzahl]",{"$f":"PV_Module!$G$36","v":0},0,null,null,null,null,null,null,null,null,"4 bis 20 kW","[Anzahl]",63]
[null,"20 bis 30 kW","[kWp]",{"$f":"PV_Module!$F$37","v":0},0,null,null,null,null,null,null,null,null,"20 bis 30 kW","[kWp]",64]
[null,"20 bis 30 kW","[Anzahl]",{"$f":"PV_Module!$G$37","v":0},0,null,null,null,null,null,null,null,null,"20 bis 30 kW","[Anzahl]",65]
[null,"30 bis 50 kW","[kWp]",{"$f":"PV_Module!$F$38","v":0},0,null,null,null,null,null,null,null,null,"30 bis 50 kW","[kWp]",66]
[null,"30 bis 50 kW","[Anzahl]",{"$f":"PV_Module!$G$38","v":0},0,null,null,null,null,null,null,null,null,"30 bis 50 kW","[Anzahl]",67]
[null,"50 bis 100 kW","[kWp]",{"$f":"PV_Module!$F$39","v":0},0,null,null,null,null,null,null,null,null,"50 bis 100 kW","[kWp]",68]
[null,"50 bis 100","[Anzahl]",{"$f":"PV_Module!$G$39","v":0},0,null,null,null,null,null,null,null,null,"50 bis 100","[Anzahl]",69]
[null,"100 bis 1000 kW","[kWp]",{"$f":"PV_Module!$F$40","v":0},0,null,null,null,null,null,null,null,null,"100 bis 1000 kW","[kWp]",70]
[null,"100 bis 1000 kW","[Anzahl]",{"$f":"PV_Module!$G$40","v":0},0,null,null,null,null,null,null,null,null,"100 bis 1000 kW","[Anzahl]",71]
[null,"> 1000 kW","[kWp]",{"$f":"PV_Module!$F$41","v":0},0,null,null,null,null,null,null,null,null,"> 1000 kW","[kWp]",72]
[null,"> 1000 kW","[Anzahl]",{"$f":"PV_Module!$G$41","v":0},0,null,null,null,null,null,null,null,null,"> 1000 kW","[Anzahl]",73]
[null,"Summe Tab. 6b","[kWp]",{"$f":"D64+D66+D68+D70+D72+D74+D76","v":0},0,null,null,null,null,null,null,null,null,"Summe Tab. 6b","[kWp]",74]
[null,"Summe Tab. 6b Anz.","[Anzahl]",{"$f":"D65+D67+D69+D71+D73+D75+D77","v":0},0,null,null,null,null,null,null,null,null,"Summe Tab. 6b Anz.","[Anzahl]",75]
["Ersatz","Ersetzte Anlagen","[kWp]",{"$f":"PV_Module!B42","v":0},0,null,null,null,null,null,null,null,"Ersatz","Ersetzte Anlagen","[kWp]",76]
[null,"Ersetzte Anlagen","[Anzahl]",{"$f":"PV_Module!C42","v":0},0,null,null,null,null,null,null,null,null,"Ersetzte Anlagen","[Anzahl]",77]
["Fassade","Fassadenanlagen","[kWp]",{"$f":"PV_Module!B49","v":0},0,null,null,null,null,null,null,null,"Fassade","Fassadenanlagen","[kWp]",78]
[null,"Fassadenanlagen","[Anzahl]",{"$f":"PV_Module!C49","v":0},0,null,null,null,null,null,null,null,null,"Fassadenanlagen","[Anzahl]",79]
[null,"Tabelle 7: PVT - Systeme",null,null,null,null,null,null,null,null,null,null,null,"Tab. 7",null,80]
["PVT","PV installiert","[kW]",{"$f":"PV_Module!B54","v":0},0,null,"Formel in Spalte D korrigiert UK 04.01.2024",null,null,null,null,null,"PVT","PV installiert","[kW]",81]
[null,"Thermie","[m2]",{"$f":"PV_Module!B55","v":0},{"$f":"D86","v":0},null,"Formel in Spalte D korrigiert UK 04.01.2024",null,null,null,null,null,null,"Thermie","[m2]",82]
[null,"PVT","[Anzahl]",{"$f":"PV_Module!B56","v":0},0,null,"Formel in Spalte D korrigiert UK 04.01.2024",null,null,null,null,null,null,"PVT","[Anzahl]",83]
[null,"Leerfeld 1",null,null,null,null,null,null,null,null,null,null,null,"Leerfeld 1",null,84]
[null,"Leerfeld 2",null,null,null,null,null,null,null,null,null,null,null,"Leerfeld 2",null,85]
[null,"Leerfeld 3",null,null,null,null,null,null,null,null,null,null,null,"Leerfeld 3",null,86]
[null,"Leerfeld 4",null,null,null,null,null,null,null,null,null,null,null,"Leerfeld 4",null,87]
[null,"Leerfeld 5",null,null,"Last",null,null,null,null,null,null,null,null,"Leerfeld 5",null,88]
[null,"Version",null,null,{"$f":"Referenz!B2","v":"1.3.1"},null,null,null,null,null,null,null,null,"Formular-Version",null,89]
[null,null,null,null,null,null,null,null,null,null,null,null,null,null,null,90]
[null,null,null,null,"mögliche (Export-)Stati:",null,null,null,null,null,null,null,"Reserve-Spalten für Auswertung",null,null,91]
[null,null,null,null,"Daten für Import plausibel",null,null,null,null,null,null,null,null,null,null,92]
[null,null,null,null,"Detailabklärung im Gang",null,null,null,null,null,null,null,null,null,null,93]
[null,null,null,null,"Erfassung im Gang",null,null,null,null,null,null,null,null,"Res.",null,94]
[null,null,null,null,"Alle Daten verarbeitet"]
[null,null,null,null,"nicht mehr anschreiben"]
[null,null,null,null,"Neu"]
[null,null,null,null,"wieder aufnehmen"]
[]
[]
[null,null,null,null,"mögliche Funktionen (Speicher/PVT)):"]
[null,null,null,null,"Installateur"]
[null,null,null,null,"Systemhaus"]